bitfinex/quotes_BTCUSD_20240718
["timestamp","ask_amount","ask_price","bid_price","bid_amount"]
[1721319453155,0.56557631,63701.0,63700.0,0.61854261]
[1721319453404,0.85748979,63701.0,63700.0,0.61854261]
[1721319453604,0.85840716,63701.0,63700.0,0.61854261]
[1721319453804,0.85840716,63701.0,63700.0,0.53654261]
[1721319454062,1.17237316,63701.0,63700.0,0.47294261]
[1721319454209,1.17237316,63701.0,63700.0,0.56394261]
[1721319454385,1.56733916,63701.0,63700.0,0.56394261]
[1721319456055,1.48633916,63701.0,63700.0,0.56394261]
[1721319456457,1.12490866,63701.0,63700.0,0.56394261]
[1721319456656,1.48643923,63701.0,63700.0,0.56394261]
[1721319458967,1.17247323,63701.0,63700.0,0.56394261]
[1721319459176,0.38755823,63701.0,63700.0,1.23827387]
[1721319459383,0.38755823,63701.0,63700.0,0.92430287]
[1721319459588,0.02602766,63701.0,63700.0,0.92430287]
[1721319459793,0.20995505,63701.0,63700.0,0.92430287]
[1721319460201,0.39082323,63701.0,63700.0,1.23827387]
[1721319460412,0.39082323,63701.0,63700.0,1.39265561]
[1721319460630,0.15875259,63705.0,63701.0,0.14037918]
[1721319460631,0.14107827,63705.0,63701.0,0.14037918]
[1721319460849,0.157776,63716.0,63704.0,0.16817479]
[1721319460850,0.11757055,63707.0,63704.0,0.16817479]
[1721319461067,0.00083,63716.0,63705.0,1.0565326]
[1721319461068,0.09406607,63706.0,63705.0,1.0565326]
[1721319461280,0.14107827,63715.0,63714.0,0.240151]
[1721319461519,0.14107827,63715.0,63714.0,1.43543179]
[1721319461736,0.00083,63716.0,63715.0,0.520845]
[1721319461949,0.09407362,63722.0,63715.0,0.520845]
[1721319461950,0.09407362,63722.0,63721.0,0.470802]
[1721319462164,0.00083,63724.0,63723.0,0.156929]
[1721319462414,0.046913,63744.0,63725.0,0.1456]
[1721319462621,0.0467756,63747.0,63745.0,0.156873]
[1721319462838,0.71345991,63751.0,63744.0,0.302477]
[1721319462839,0.0467756,63749.0,63744.0,0.302477]
[1721319463040,0.0467756,63749.0,63744.0,0.37101711]
[1721319463243,0.156862,63750.0,63744.0,0.37101711]
[1721319463657,0.627412,63754.0,63744.0,0.37101711]
[1721319463658,0.156865,63749.0,63744.0,0.21414011]
[1721319464065,0.313706,63754.0,63745.0,0.156873]
[1721319464066,0.156858,63752.0,63745.0,0.156873]
[1721319464272,0.15686,63751.0,63746.0,0.07113263]
[1721319464492,0.313718,63752.0,63746.0,0.07113263]
[1721319464703,0.156865,63749.0,63744.0,0.29998174]
[1721319465325,0.313692,63757.0,63724.0,0.1456]
[1721319465326,0.0793,63745.0,63724.0,0.1456]
[1721319465539,0.156897,63737.0,63729.0,0.313828]
[1721319465743,0.313766,63742.0,63733.0,0.156903]
[1721319465951,0.15689,63739.0,63733.0,0.31128474]
[1721319466371,0.313777,63740.0,63733.0,0.15438174]
[1721319466581,0.156894,63738.0,63733.0,0.15438174]
[1721319466756,0.31379,63737.0,63733.0,0.21689331]
[1721319466987,0.156897,63736.0,63733.0,0.15438174]
[1721319467187,0.156897,63736.0,63733.0,0.15638174]
[1721319467486,0.156897,63736.0,63733.0,0.15438174]
[1721319468432,0.31377,63741.0,63733.0,0.15438174]
[1721319468711,0.055727,63741.0,63718.0,0.227]
[1721319468936,0.470772,63725.0,63720.0,0.156936]
[1721319469617,0.156924,63725.0,63720.0,0.156936]
[1721319469817,0.156919,63727.0,63719.0,0.313874]
[1721319470022,0.313793,63737.0,63730.0,0.15691]
[1721319470214,0.313793,63737.0,63733.0,0.004]
[1721319470418,0.156902,63734.0,63733.0,0.004]
[1721319470836,0.78451,63734.0,63733.0,0.004]
[1721319470997,0.156917,63728.0,63725.0,0.15438174]
[1721319471198,0.470772,63725.0,63724.0,0.0734]
[1721319471801,0.470772,63725.0,63724.0,0.011]
[1721319472002,0.31384,63727.0,63720.0,0.002794]
[1721319472201,0.156936,63721.0,63720.0,0.002794]
[1721319472381,0.156936,63721.0,63719.0,0.1393]
[1721319472782,0.156936,63720.0,63719.0,0.1393]
[1721319473210,0.001,63725.0,63724.0,0.156926]
[1721319473471,0.156909,63732.0,63727.0,0.156918]
[1721319473675,0.001,63737.0,63731.0,0.30417479]
[1721319473879,0.31378,63739.0,63733.0,0.003]
[1721319474063,0.313789,63737.0,63733.0,0.05588947]
[1721319474361,0.1569,63735.0,63733.0,0.05588947]
[1721319474561,0.313789,63737.0,63733.0,0.003]
[1721319474562,0.470706,63734.0,63733.0,0.003]
[1721319474919,0.78451,63734.0,63733.0,0.003]
[1721319475591,0.470706,63734.0,63733.0,0.003]
[1721319475711,0.78451,63734.0,63733.0,0.003]
[1721319476535,0.1,63740.0,63734.0,0.0644]
[1721319476757,0.156894,63737.0,63734.0,0.21878174]
[1721319476962,0.15689,63739.0,63735.0,0.0774]
[1721319477324,0.156878,63744.0,63739.0,0.156887]
[1721319477523,0.1,63743.0,63736.0,0.15438174]
[1721319477714,0.156884,63741.0,63737.0,0.156894]
[1721319477957,0.156884,63741.0,63738.0,0.15438174]
[1721319478364,0.003,63740.0,63738.0,0.31127174]
[1721319478782,0.156883,63742.0,63738.0,0.31127174]
[1721319479439,0.256881,63743.0,63738.0,0.31127174]
[1721319479649,0.156885,63741.0,63738.0,0.15438174]
[1721319480347,0.25688,63743.0,63739.0,0.156889]
[1721319480623,0.156885,63741.0,63738.0,0.15438174]
[1721319480821,0.156887,63740.0,63738.0,0.15538174]
[1721319481028,0.001,63741.0,63738.0,0.16138174]
[1721319481589,0.156885,63741.0,63738.0,0.15538174]
[1721319481826,0.313765,63742.0,63738.0,0.15438174]
[1721319482033,0.156886,63741.0,63738.0,0.15738174]
[1721319482418,0.470668,63739.0,63738.0,0.009]
[1721319483073,0.156887,63740.0,63738.0,0.009]
[1721319483222,0.156887,63740.0,63736.0,0.156895]
[1721319483432,0.156887,63740.0,63738.0,0.007]
[1721319483980,0.156887,63740.0,63738.0,0.002]
[1721319484189,0.001,63739.0,63738.0,0.164892]
[1721319484401,0.001,63739.0,63738.0,0.476676]
[1721319484607,0.001,63739.0,63738.0,0.30389455]
[1721319484817,0.001,63739.0,63738.0,0.172892]
[1721319484934,0.001,63740.0,63738.0,0.007]
[1721319485163,0.156889,63739.0,63738.0,0.007]
[1721319485336,0.470668,63739.0,63738.0,0.007]
[1721319485752,0.784447,63739.0,63738.0,0.007]
[1721319486153,0.156899,63735.0,63734.0,0.0644]
[1721319486371,0.156899,63735.0,63734.0,0.21878174]
[1721319486546,0.156891,63739.0,63734.0,0.41987147]
[1721319486755,0.156893,63738.0,63734.0,0.41987247]
[1721319487754,0.001,63735.0,63734.0,0.43087247]
[1721319487865,0.001,63735.0,63734.0,0.41987247]
[1721319488070,0.001,63735.0,63734.0,0.42687247]
[1721319488754,0.001,63735.0,63734.0,0.43687247]
[1721319488904,0.001,63735.0,63734.0,0.75067647]
[1721319489323,0.001,63735.0,63734.0,0.74067647]
[1721319489524,0.1,63744.0,63734.0,0.56757147]
[1721319489763,0.256869,63748.0,63743.0,0.221279]
[1721319489917,0.156871,63747.0,63744.0,0.15438174]
[1721319490112,0.1,63746.0,63744.0,0.15438174]
[1721319490603,0.15687,63747.0,63744.0,0.15438174]
[1721319490730,0.1,63746.0,63744.0,0.15438174]
[1721319491135,0.1,63746.0,63744.0,0.15538174]
[1721319491335,0.46304871,63767.0,63752.0,0.156857]
[1721319491336,0.0465637,63759.0,63752.0,0.156857]
[1721319491538,0.0465637,63759.0,63746.0,0.0802]
[1721319491539,0.156851,63755.0,63751.0,0.156859]
[1721319491811,0.156851,63755.0,63751.0,0.31124074]
[1721319492648,0.1,63754.0,63751.0,0.31124074]
[1721319493056,0.163,63762.0,63751.0,0.31124074]
[1721319493300,0.05655005,63761.0,63751.0,0.31124074]
[1721319493504,0.005,63755.0,63751.0,0.31124074]
[1721319494002,0.004,63755.0,63751.0,0.15638174]
[1721319494208,0.1,63761.0,63751.0,0.15438174]
[1721319494342,0.05720265,63760.0,63751.0,0.31124074]
[1721319494539,0.15720265,63760.0,63751.0,0.15538174]
[1721319494769,0.05720265,63759.0,63751.0,0.15538174]
[1721319495083,0.15720265,63759.0,63751.0,0.15538174]
[1721319495261,0.05720265,63758.0,63751.0,0.31224174]
[1721319495430,0.15720265,63758.0,63751.0,0.31224174]
[1721319495626,0.05720265,63757.0,63751.0,0.31224174]
[1721319495820,0.05720265,63757.0,63751.0,0.31624174]
[1721319495821,0.15720265,63757.0,63751.0,0.31624174]
[1721319496131,0.1,63757.0,63751.0,0.31524174]
[1721319496325,0.1,63757.0,63751.0,0.31124174]
[1721319496750,0.1,63757.0,63754.0,0.156852]
[1721319496953,0.1,63762.0,63755.0,0.0608]
[1721319497172,0.08204546,63761.0,63755.0,0.0608]
[1721319497375,0.05750191,63760.0,63755.0,0.0608]
[1721319497577,0.1,63762.0,63755.0,0.0608]
[1721319497578,0.002,63757.0,63755.0,0.0608]
[1721319497983,0.1,63762.0,63755.0,0.0608]
[1721319498216,0.08204429,63761.0,63755.0,0.0608]
[1721319498430,0.05750085,63760.0,63755.0,0.0608]
[1721319498756,0.05750085,63759.0,63755.0,0.0608]
[1721319498886,0.1,63762.0,63755.0,0.0608]
[1721319499110,0.06004615,63761.0,63755.0,0.21765]
[1721319499324,0.05704615,63760.0,63755.0,0.21765]
[1721319499551,0.003,63761.0,63755.0,0.21865]
[1721319499718,0.05704708,63760.0,63755.0,0.0618]
[1721319499919,0.04662287,63766.0,63757.0,0.079]
[1721319500104,0.00833,63769.0,63764.0,0.156828]
[1721319500342,0.00833,63769.0,63764.0,0.531284]
[1721319500540,0.00833,63769.0,63764.0,0.84494]
[1721319503022,0.00583,63765.0,63764.0,0.84494]
[1721319503718,0.01483,63765.0,63764.0,1.0278175]
[1721319504061,0.01483,63765.0,63764.0,1.4173735]
[1721319504513,0.01483,63765.0,63764.0,1.38987774]
[1721319505256,0.01483,63765.0,63764.0,1.72653374]
[1721319506514,0.00983,63765.0,63764.0,1.72653374]
[1721319506950,0.00083,63765.0,63764.0,1.72753374]
[1721319507105,0.00283,63765.0,63764.0,1.72753374]
[1721319507307,0.00283,63765.0,63764.0,1.39087774]
[1721319509610,0.00283,63765.0,63764.0,0.002]
[1721319509948,0.00283,63765.0,63764.0,0.158828]
[1721319510228,0.00283,63765.0,63764.0,0.002]
[1721319511002,0.159655,63765.0,63764.0,0.002]
[1721319511202,0.27609921,63765.0,63764.0,0.002]
[1721319511412,0.473306,63765.0,63764.0,0.002]
[1721319511591,0.886957,63765.0,63764.0,0.002]
[1721319511788,1.39399362,63765.0,63764.0,0.002]
[1721319512042,1.67922126,63765.0,63764.0,0.00178309]
[1721319512243,2.01741784,63765.0,63764.0,0.00178309]
[1721319512444,2.15747472,63765.0,63764.0,0.00178309]
[1721319512673,2.14587907,63765.0,63764.0,0.00111139]
[1721319512846,2.14587907,63765.0,63741.0,0.156884]
[1721319512847,0.1427,63747.0,63741.0,0.156884]
[1721319513351,0.0783,63747.0,63742.0,0.156881]
[1721319513996,0.0783,63747.0,63740.0,0.156885]
[1721319514131,0.156872,63746.0,63740.0,0.33756699]
[1721319514355,0.156872,63746.0,63719.0,0.05]
[1721319514356,0.0783,63747.0,63729.0,0.0646]
[1721319514579,0.156899,63735.0,63728.0,0.156914]
[1721319514785,0.156899,63735.0,63726.0,0.313843]
[1721319514994,0.156899,63735.0,63729.0,0.156914]
[1721319515414,0.156903,63734.0,63727.0,0.15438174]
[1721319516118,0.156903,63734.0,63729.0,0.156913]
[1721319516430,0.001,63735.0,63732.0,0.156905]
[1721319516945,0.156895,63737.0,63732.0,0.156905]
[1721319517175,0.36306,63798.0,63734.0,0.313803]
[1721319517176,0.5552,63747.0,63734.0,0.313803]
[1721319517375,0.5552,63747.0,63738.0,0.156891]
[1721319517376,0.156881,63743.0,63738.0,0.156891]
[1721319517581,0.1,63742.0,63734.0,0.46818474]
[1721319517788,0.313761,63743.0,63734.0,0.15438174]
[1721319517982,0.1,63742.0,63721.0,0.227]
[1721319518186,0.156903,63734.0,63732.0,0.006]
[1721319518598,0.156899,63736.0,63732.0,0.006]
[1721319518791,0.1569,63735.0,63732.0,0.006]
[1721319519006,0.611113,63733.0,63732.0,0.006]
[1721319519204,1.44311274,63733.0,63732.0,0.006]
[1721319519438,1.96317535,63733.0,63732.0,0.014]
[1721319519679,0.156958,63712.0,63707.0,0.002794]
[1721319519901,0.156964,63709.0,63707.0,0.01561587]
[1721319520314,0.156966,63708.0,63707.0,0.01561587]
[1721319520526,0.570898,63708.0,63707.0,0.01561587]
[1721319521038,0.88483,63708.0,63707.0,0.01561587]
[1721319521455,0.88483,63708.0,63707.0,0.01861587]
[1721319522144,0.88483,63708.0,63707.0,0.01561587]
[1721319522548,0.88483,63708.0,63707.0,0.01861587]
[1721319523932,0.88483,63708.0,63707.0,0.01561587]
[1721319524135,0.88583,63708.0,63707.0,0.01761587]
[1721319524665,1.199762,63708.0,63707.0,0.01761587]
[1721319524866,1.347262,63708.0,63707.0,0.01761587]
[1721319525125,1.347262,63708.0,63707.0,0.002]
[1721319525313,1.50164374,63708.0,63707.0,0.002]
[1721319526689,1.03074574,63708.0,63700.0,0.46394261]
[1721319526917,0.784915,63701.0,63700.0,0.47955848]
[1721319527521,1.198881,63701.0,63700.0,0.47955848]
[1721319527728,1.277181,63701.0,63700.0,0.47955848]
[1721319528182,1.286181,63701.0,63700.0,0.48055848]
[1721319529022,1.277181,63701.0,63700.0,0.47955848]
[1721319529579,1.85752874,63701.0,63700.0,0.47955848]
[1721319530078,1.85752874,63701.0,63700.0,0.46394261]
[1721319530239,1.87252874,63701.0,63700.0,0.46494261]
[1721319530856,1.86652874,63701.0,63700.0,0.46494261]
[1721319531307,1.81652874,63701.0,63700.0,0.46494261]
[1721319531727,1.83552874,63701.0,63700.0,0.46594261]
[1721319533010,1.83552874,63701.0,63700.0,0.46589872]
[1721319533251,1.82952874,63701.0,63700.0,0.46589872]
[1721319533458,1.87952874,63701.0,63700.0,0.46589872]
[1721319533658,1.83852874,63701.0,63700.0,0.46589872]
[1721319533859,1.88852874,63701.0,63700.0,0.46589872]
[1721319534605,1.83852874,63701.0,63700.0,0.46589872]
[1721319535666,1.52456274,63701.0,63700.0,0.46589872]
[1721319538356,0.994215,63701.0,63700.0,0.46589872]
[1721319538563,0.501949,63701.0,63700.0,0.46589872]
[1721319539506,0.815915,63701.0,63700.0,0.46589872]
[1721319539706,0.501949,63701.0,63700.0,0.46589872]
[1721319540126,0.815915,63701.0,63700.0,0.46589872]
[1721319540332,0.601949,63701.0,63700.0,0.46589872]
[1721319540855,0.915915,63701.0,63700.0,0.46589872]
[1721319541027,0.131,63701.0,63700.0,0.46589872]
[1721319541224,0.031,63701.0,63700.0,0.81285459]
[1721319541425,0.501949,63701.0,63700.0,0.46589872]
[1721319541643,0.031,63701.0,63700.0,0.62288372]
[1721319541829,0.031,63701.0,63700.0,1.01402951]
[1721319542348,0.031,63701.0,63700.0,1.15112951]
[1721319542520,0.009,63701.0,63700.0,1.14912951]
[1721319543126,0.00894515,63701.0,63700.0,1.14912951]
[1721319543535,0.00894515,63701.0,63700.0,0.75798372]
[1721319543703,0.00894515,63701.0,63700.0,1.07195472]
[1721319544140,0.1,63706.0,63700.0,1.07195472]
[1721319544335,0.256971,63706.0,63701.0,0.15698]
[1721319544546,0.1,63706.0,63701.0,0.14126867]
[1721319544741,0.1,63706.0,63700.0,0.61661459]
[1721319544920,0.156968,63707.0,63702.0,0.15698]
[1721319545126,0.1,63706.0,63703.0,0.156978]
[1721319545595,0.1,63706.0,63704.0,0.156975]
[1721319545908,0.313911,63713.0,63704.0,0.156975]
[1721319545909,0.156962,63710.0,63704.0,0.313952]
[1721319546109,0.003,63706.0,63705.0,1.00564274]
[1721319546305,0.003,63706.0,63705.0,1.15719831]
[1721319546527,0.003,63706.0,63705.0,1.55184531]
[1721319546663,0.003,63706.0,63705.0,1.57484531]
[1721319547064,0.008,63706.0,63705.0,1.57484531]
[1721319547493,0.005,63706.0,63705.0,1.57484531]
[1721319547676,0.007,63706.0,63705.0,1.57484531]
[1721319548378,0.005,63706.0,63705.0,1.57484531]
[1721319548732,0.006,63706.0,63705.0,1.57684531]
[1721319548931,0.001,63706.0,63705.0,1.57684531]
[1721319549130,0.001,63706.0,63705.0,1.89079231]
[1721319549337,0.001,63706.0,63705.0,1.89379231]
[1721319549745,0.001,63706.0,63705.0,2.10558746]
[1721319549973,0.55,63748.0,63705.0,2.10558746]
[1721319549974,0.46387871,63732.0,63731.0,0.223409]
[1721319550175,0.46387871,63732.0,63731.0,0.70722561]
[1721319550341,0.00083,63732.0,63731.0,1.02104461]
[1721319551011,0.00083,63732.0,63731.0,0.39340661]
[1721319551195,0.785365,63732.0,63731.0,0.01561587]
[1721319551396,1.099179,63732.0,63731.0,0.01561587]
[1721319551597,1.199179,63732.0,63731.0,0.01561587]
[1721319552380,1.209179,63732.0,63731.0,0.01561587]
[1721319552787,1.216179,63732.0,63731.0,0.01561587]
[1721319553767,0.902365,63732.0,63731.0,0.01561587]
[1721319554582,0.11783,63732.0,63731.0,0.01561587]
[1721319554789,0.01783,63732.0,63731.0,0.72312561]
[1721319554959,0.01783,63732.0,63731.0,0.74048157]
[1721319555376,0.01783,63732.0,63731.0,0.7248657]
[1721319555595,0.01783,63732.0,63731.0,1.74417849]
[1721319556427,0.01783,63732.0,63731.0,1.6670037]
[1721319556632,0.00783,63732.0,63731.0,1.6670037]
[1721319557040,0.00883,63732.0,63731.0,1.6700037]
[1721319557894,0.00883,63732.0,63731.0,1.6730037]
[1721319557895,0.00283,63732.0,63731.0,1.6730037]
[1721319558329,0.00283,63732.0,63731.0,1.7230037]
[1721319559083,0.00283,63732.0,63731.0,2.0368227]
[1721319559298,0.06934395,63745.0,63744.0,0.923587]
[1721319559510,0.06934395,63745.0,63744.0,1.80469831]
[1721319559711,0.46304871,63762.0,63761.0,0.156835]
[1721319559913,0.46304871,63762.0,63761.0,0.17245087]
[1721319560119,0.00083,63765.0,63761.0,0.17245087]
[1721319560781,0.10083,63765.0,63761.0,0.17245087]
[1721319561060,0.00083,63765.0,63761.0,0.17245087]
[1721319561273,0.157656,63765.0,63761.0,0.01561587]
[1721319561475,0.00083,63765.0,63761.0,0.01561587]
[1721319561839,0.156829,63764.0,63761.0,0.01561587]
[1721319562260,0.313656,63764.0,63761.0,0.01561587]
[1721319562481,0.156831,63763.0,63761.0,0.01561587]
[1721319562679,0.156833,63762.0,63761.0,0.01561587]
[1721319564423,0.865665,63762.0,63761.0,0.01561587]
[1721319564652,1.279331,63762.0,63761.0,0.01561587]
[1721319565006,1.346231,63762.0,63761.0,0.01561587]
[1721319565591,1.346231,63762.0,63761.0,0.01761587]
[1721319566164,1.344231,63762.0,63761.0,0.01761587]
[1721319566611,1.345231,63762.0,63761.0,0.01761587]
[1721319567190,1.345231,63762.0,63761.0,0.01961587]
[1721319567391,1.344231,63762.0,63761.0,0.01961587]
[1721319567660,1.344231,63762.0,63761.0,0.01561587]
[1721319567833,1.345231,63762.0,63761.0,0.01561587]
[1721319568057,0.156862,63750.0,63745.0,0.221973]
[1721319568237,0.156862,63750.0,63746.0,0.1155297]
[1721319568607,0.156867,63749.0,63746.0,0.1155297]
[1721319569015,0.313686,63758.0,63748.0,0.313734]
[1721319569214,0.156852,63755.0,63749.0,0.15438174]
[1721319569435,0.156852,63755.0,63751.0,0.156859]
[1721319569630,0.156849,63756.0,63751.0,0.31124074]
[1721319569856,0.156852,63755.0,63751.0,0.1711295]
[1721319570083,0.156852,63755.0,63751.0,0.15438174]
[1721319570256,0.313672,63761.0,63751.0,0.15438174]
[1721319570473,0.156853,63754.0,63751.0,0.15438174]
[1721319570805,0.156857,63752.0,63751.0,0.15438174]
[1721319571134,0.784287,63752.0,63751.0,0.004]
[1721319571339,0.156872,63747.0,63745.0,0.08071587]
[1721319571570,0.1424,63754.0,63745.0,0.16643286]
[1721319571571,0.313727,63750.0,63745.0,0.16643286]
[1721319571768,0.313719,63752.0,63751.0,0.007]
[1721319571969,0.470576,63752.0,63751.0,0.007]
[1721319572393,0.156872,63746.0,63745.0,0.08071587]
[1721319572543,0.156872,63746.0,63745.0,0.09371587]
[1721319573188,0.001,63747.0,63745.0,0.09371587]
[1721319573800,0.157871,63747.0,63745.0,0.09371587]
[1721319574018,0.156871,63747.0,63745.0,0.09271587]
[1721319574218,0.001,63746.0,63745.0,0.09271587]
[1721319574419,0.001,63746.0,63745.0,0.08071587]
[1721319574626,0.001,63746.0,63745.0,0.24959087]
[1721319575275,0.001,63746.0,63745.0,0.09271587]
[1721319575448,0.15687,63747.0,63745.0,0.08071587]
[1721319575792,0.15787,63747.0,63746.0,0.08571589]
[1721319575943,0.001,63747.0,63746.0,0.08571589]
[1721319576150,0.001,63747.0,63746.0,0.39696963]
[1721319576375,0.001,63747.0,63746.0,0.71071463]
[1721319576581,0.001,63747.0,63746.0,1.02445963]
[1721319577151,0.001,63747.0,63746.0,1.50330463]
[1721319577616,0.156841,63759.0,63755.0,0.29895]
[1721319577829,0.156843,63758.0,63755.0,0.15771587]
[1721319577995,0.156845,63758.0,63755.0,0.15771587]
[1721319578326,0.156845,63757.0,63755.0,0.01561587]
[1721319578537,0.156843,63758.0,63755.0,0.01561587]
[1721319578739,0.156847,63756.0,63755.0,0.01561587]
[1721319578940,0.48739527,63756.0,63755.0,0.01561587]
[1721319579147,0.48739527,63756.0,63755.0,0.01761587]
[1721319579362,0.80109027,63756.0,63755.0,0.01761587]
[1721319579568,0.784237,63756.0,63755.0,0.01761587]
[1721319579782,0.80102081,63756.0,63755.0,0.01761587]
[1721319580689,0.80102081,63756.0,63755.0,0.01561587]
[1721319581112,0.80102081,63756.0,63755.0,0.02061587]
[1721319581487,1.11471581,63756.0,63755.0,0.02061587]
[1721319581687,1.11471581,63756.0,63755.0,0.01761587]
[1721319581863,0.80102081,63756.0,63755.0,0.01761587]
[1721319582304,1.11471581,63756.0,63755.0,0.02261587]
[1721319582475,1.21471581,63756.0,63755.0,0.02261587]
[1721319583286,1.26977382,63756.0,63755.0,0.02061587]
[1721319583483,1.26977382,63756.0,63755.0,0.01561587]
[1721319583659,1.28177382,63756.0,63755.0,0.01661587]
[1721319583864,1.29077382,63756.0,63755.0,0.01761587]
[1721319584063,1.27877382,63756.0,63755.0,0.001]
[1721319584291,0.156877,63744.0,63741.0,0.0646]
[1721319584492,0.156877,63744.0,63742.0,0.21619874]
[1721319585697,0.157877,63744.0,63742.0,0.21619874]
[1721319586595,0.001,63744.0,63742.0,0.21619874]
[1721319586795,0.001,63744.0,63742.0,0.37307874]
[1721319586995,0.156873,63746.0,63743.0,0.08569716]
[1721319587201,0.001,63744.0,63743.0,0.08569716]
[1721319587982,0.156875,63745.0,63743.0,0.08569716]
[1721319588203,0.156875,63745.0,63744.0,0.09250529]
[1721319588420,0.17353188,63745.0,63744.0,0.10812116]
[1721319590095,0.01665688,63745.0,63744.0,0.10812116]
[1721319590671,0.17353188,63745.0,63744.0,0.10812116]
[1721319590916,0.17453188,63745.0,63744.0,0.11012116]
[1721319591328,0.17353188,63745.0,63744.0,0.11012116]
[1721319591940,0.01665688,63745.0,63744.0,0.02261587]
[1721319592174,0.01665688,63745.0,63744.0,0.02061587]
[1721319592505,0.01665688,63745.0,63744.0,0.02461587]
[1721319592712,0.01665688,63745.0,63744.0,0.64962961]
[1721319593145,0.01665688,63745.0,63744.0,0.33587461]
[1721319593351,0.01665688,63745.0,63744.0,0.47084767]
[1721319593594,0.01665688,63745.0,63744.0,0.4552318]
[1721319593788,0.01765688,63745.0,63744.0,0.4572318]
[1721319594207,0.01765688,63745.0,63744.0,0.4592318]
[1721319594590,0.01765688,63745.0,63744.0,0.4632318]
[1721319594991,0.001,63745.0,63744.0,0.4632318]
[1721319595397,0.001,63745.0,63744.0,0.3063548]
[1721319595572,0.001,63745.0,63744.0,0.4632318]
[1721319595983,0.001,63745.0,63744.0,0.7769868]
[1721319597270,0.001,63745.0,63744.0,0.4632318]
[1721319597713,0.001,63745.0,63744.0,0.7769868]
[1721319598307,0.04786462,63745.0,63744.0,0.7769868]
[1721319598707,0.0479327,63745.0,63744.0,0.7769868]
[1721319599032,0.001,63745.0,63744.0,0.7769868]
[1721319599280,0.001,63745.0,63744.0,1.0907418]
[1721319599488,0.001,63745.0,63744.0,1.5718968]
[1721319600449,0.001,63745.0,63744.0,0.31078174]
[1721319600661,0.001,63745.0,63744.0,0.80441374]
[1721319600662,0.04800549,63745.0,63744.0,0.80441374]
[1721319600930,0.04800549,63745.0,63744.0,1.09516874]
[1721319601141,0.07150631,63745.0,63744.0,1.09516874]
[1721319601272,0.07150631,63745.0,63744.0,1.23356731]
[1721319601471,0.05607413,63745.0,63744.0,1.23356731]
[1721319601672,0.04801544,63745.0,63744.0,1.54732231]
[1721319601903,0.07152364,63745.0,63744.0,1.57032231]
[1721319602103,0.04801846,63745.0,63744.0,1.57032231]
[1721319602266,0.001,63745.0,63744.0,1.57032231]
[1721319603538,0.04801846,63745.0,63744.0,1.57032231]
[1721319603934,0.04802525,63745.0,63744.0,1.57032231]
[1721319605571,0.001,63745.0,63744.0,1.62032231]
[1721319605775,0.001,63745.0,63744.0,1.88407731]
[1721319606825,0.001,63745.0,63744.0,1.93407731]
[1721319607434,0.001,63745.0,63744.0,1.88407731]
[1721319607661,0.001,63745.0,63744.0,1.57032231]
[1721319608461,0.00183,63745.0,63744.0,1.57032231]
[1721319609452,0.00183,63745.0,63744.0,0.91981231]
[1721319609734,0.00183,63745.0,63744.0,0.37038031]
[1721319609935,0.00183,63745.0,63744.0,0.30478031]
[1721319610134,0.00183,63745.0,63744.0,0.16638174]
[1721319611334,0.00183,63745.0,63744.0,0.32325874]
[1721319612186,0.00183,63745.0,63744.0,0.16638174]
[1721319612399,0.00183,63745.0,63744.0,0.32325874]
[1721319613023,0.00183,63745.0,63744.0,0.16638174]
[1721319613240,0.05798804,63745.0,63744.0,0.30457281]
[1721319614267,0.05803565,63745.0,63744.0,0.46144981]
[1721319614497,0.15202211,63745.0,63744.0,0.46144981]
[1721319614823,0.15202211,63745.0,63744.0,0.30457281]
[1721319615387,0.1193143,63745.0,63744.0,0.30457281]
[1721319615584,0.33239495,63745.0,63744.0,0.30457281]
[1721319616195,0.17551995,63745.0,63744.0,0.30457281]
[1721319616684,0.15204114,63745.0,63744.0,0.30457281]
[1721319616981,0.15302967,63745.0,63744.0,0.30457281]
[1721319619421,0.05902418,63745.0,63744.0,0.30457281]
[1721319619783,0.17650848,63745.0,63744.0,0.30457281]
[1721319619923,0.33338348,63745.0,63744.0,0.16638174]
[1721319620124,1.18756568,63745.0,63744.0,0.012]
[1721319620353,1.32881768,63745.0,63744.0,0.012]
[1721319620560,1.49535963,63745.0,63744.0,0.012]
[1721319620965,1.80910963,63745.0,63744.0,0.012]
[1721319621173,1.80810963,63745.0,63744.0,0.006]
[1721319621822,0.156904,63733.0,63732.0,0.003707]
[1721319621998,0.30242214,63733.0,63732.0,0.2480854]
[1721319622207,0.14551814,63733.0,63732.0,0.7657341]
[1721319622436,0.11734994,63735.0,63733.0,0.313809]
[1721319622437,0.04693874,63734.0,63733.0,0.313809]
[1721319622646,0.07041005,63736.0,63733.0,0.62628295]
[1721319622854,0.04693424,63736.0,63735.0,0.227]
[1721319623019,0.04693424,63736.0,63735.0,1.18887874]
[1721319623230,0.04693424,63736.0,63735.0,1.34322831]
[1721319623442,0.09385096,63739.0,63738.0,0.156892]
[1721319623613,0.09385096,63740.0,63738.0,0.46816574]
[1721319623816,0.17054284,63741.0,63739.0,0.31127074]
[1721319624018,0.4310827,63741.0,63740.0,0.13431933]
[1721319624251,0.470661,63740.0,63739.0,0.01561587]
[1721319624407,0.95474824,63740.0,63739.0,0.01561587]
[1721319624823,1.07276015,63740.0,63739.0,0.01561587]
[1721319625015,0.95545488,63740.0,63739.0,0.01561587]
[1721319625947,0.95545488,63740.0,63739.0,0.01961587]
[1721319626272,0.64168088,63740.0,63739.0,0.04517746]
[1721319626475,0.6404758,63740.0,63739.0,0.04517746]
[1721319626920,0.6414758,63740.0,63739.0,0.05117746]
[1721319627292,0.52423385,63740.0,63739.0,0.05117746]
[1721319628580,0.52367433,63740.0,63739.0,0.04717746]
[1721319628797,0.1702236,63740.0,63739.0,0.2015592]
[1721319629013,0.1702236,63740.0,63739.0,0.3624482]
[1721319629221,0.04789762,63740.0,63739.0,1.1588062]
[1721319629418,0.001,63740.0,63739.0,1.7863642]
[1721319629614,0.001,63740.0,63739.0,1.90102923]
[1721319629839,0.001,63740.0,63739.0,1.95502923]